fUSD/lending_fUSD_20240223
["ID","MTS","AMOUNT","RATE_DAILY","PERIOD"]
[314956307,1708697452050,-508.5855824,0.00027397,2]
[314956308,1708697452060,-500.0,0.00027397,2]
[314956309,1708697452070,-520.13272629,0.00027397,2]
[314956310,1708697452080,-500.0,0.00027397,2]
[314956311,1708697452089,-512.18937939,0.00027397,2]
[314956312,1708697452098,-500.0,0.00027397,2]
[314956313,1708697452108,-500.0,0.00027397,2]
[314956314,1708697452117,-505.33906999,0.00027397,2]
[314956315,1708697452127,-502.71084393,0.00027397,2]
[314956316,1708697452137,-507.33330509,0.00027397,2]
[314956317,1708697452147,-500.0,0.00027397,2]
[314956318,1708697452156,-500.0,0.00027397,2]
[314956319,1708697452166,-502.30646244,0.00027397,2]
[314956320,1708697452175,-500.0,0.00027397,2]
[314956321,1708697452184,-500.0,0.00027397,2]
[314956322,1708697452194,-321.79919878,0.00027397,2]
[314956323,1708697452203,-510.13693057,0.00027397,2]
[314956324,1708697452213,-500.0,0.00027397,2]
[314956325,1708697452224,-502.94496358,0.00027397,2]
[314956326,1708697452234,-506.65335282,0.00027397,2]
[314956327,1708697452243,-500.0,0.00027397,2]
[314956328,1708697452252,-500.0,0.00027397,2]
[314956329,1708697452261,-503.94946549,0.00027397,2]
[314956330,1708697452271,-500.0,0.00027397,2]
[314956331,1708697452281,-500.0,0.00027397,2]
[314956332,1708697452290,-500.0,0.00027397,2]
[314956333,1708697452302,-507.92911166,0.00027397,2]
[314956334,1708697452312,-500.0,0.00027397,2]
[314956335,1708697452321,-500.0,0.00027397,2]
[314956336,1708697452331,-503.24381515,0.00027397,2]
[314956337,1708697452340,-509.44333102,0.00027397,2]
[314956338,1708697452351,-500.0,0.00027397,2]
[314956339,1708697452360,-503.49736279,0.00027397,2]
[314956340,1708697452370,-500.0,0.00027397,2]
[314956341,1708697452383,-527.28066223,0.00027397,2]
[314956342,1708697452393,-506.07815533,0.00027397,2]
[314956343,1708697452402,-505.90786001,0.00027397,2]
[314956344,1708697452412,-504.81549402,0.00027397,2]
[314956345,1708697452421,-500.0,0.00027397,2]
[314956346,1708697452431,-500.0,0.00027397,2]
[314956347,1708697452440,-500.0,0.00027397,2]
[314956348,1708697452450,-500.0,0.00027397,2]
[314956349,1708697452459,-500.0,0.00027397,2]
[314956350,1708697452468,-682.0,0.00027397,2]
[314956351,1708697452477,-502.64672741,0.00027397,2]
[314956352,1708697452487,-330.48508309,0.00027397,2]
[314956353,1708697452497,-500.0,0.00027397,2]
[314956354,1708697452506,-504.66787093,0.00027397,2]
[314956355,1708697452516,-500.0,0.00027397,2]
[314956356,1708697452525,-500.0,0.00027397,2]
[314956357,1708697452535,-156.78441018,0.00027397,2]
[314956358,1708697452544,-500.0,0.00027397,2]
[314956359,1708697452554,-500.0,0.00027397,2]
[314956360,1708697452563,-505.05642269,0.00027397,2]
[314956361,1708697452572,-507.01679102,0.00027397,2]
[314956362,1708697452581,-500.0,0.00027397,2]
[314956363,1708697452590,-500.0,0.00027397,2]
[314956364,1708697452601,-508.32988567,0.00027397,2]
[314956365,1708697452610,-500.0,0.00027397,2]
[314956366,1708697452619,-504.14486665,0.00027397,2]
[314956367,1708697452628,-511.16386662,0.00027397,2]
[314956368,1708697452638,-500.0,0.00027397,2]
[314956369,1708697452647,-689.58,0.00027397,2]
[314956370,1708697452656,-500.0,0.00027397,2]
[314956371,1708697452665,-500.0,0.00027397,2]
[314956372,1708697452674,-500.0,0.00027397,2]
[314956373,1708697452683,-500.0,0.00027397,2]
[314956374,1708697452692,-523.62718583,0.00027397,2]
[314956375,1708697452702,-500.0,0.00027397,2]
[314956376,1708697452711,-500.0,0.00027397,2]
[314956377,1708697452720,-500.0,0.00027397,2]
[314956378,1708697452730,-500.0,0.00027397,2]
[314956379,1708697452739,-508.204523,0.00027397,2]
[314956380,1708697452748,-508.48635901,0.00027397,2]
[314956381,1708697452757,-500.0,0.00027397,2]
[314956382,1708697452766,-502.73627916,0.00027397,2]
[314956383,1708697452776,-630.9,0.00027397,2]
[314956384,1708697452787,-155.0,0.00027397,2]
[314956385,1708697452796,-565.85,0.00027397,2]
[314956386,1708697452805,-554.61,0.00027397,2]
[314956387,1708697452819,-500.0,0.00027397,2]
[314956388,1708697452828,-500.0,0.00027397,2]
[314956389,1708697452838,-500.0,0.00027397,2]
[314956390,1708697452847,-504.00584014,0.00027397,2]
[314956391,1708697452857,-500.0,0.00027397,2]
[314956392,1708697452867,-500.0,0.00027397,2]
[314956393,1708697452877,-500.0,0.00027397,2]
[314956394,1708697452886,-500.0,0.00027397,2]
[314956395,1708697452895,-521.48802816,0.00027397,2]
[314956396,1708697452905,-500.0,0.00027397,2]
[314956397,1708697452914,-500.0,0.00027397,2]
[314956398,1708697452924,-500.0,0.00027397,2]
[314956399,1708697452933,-500.0,0.00027397,2]
[314956400,1708697452943,-500.0,0.00027397,2]
[314956401,1708697452953,-500.0,0.00027397,2]
[314956402,1708697452963,-500.0,0.00027397,2]
[314956403,1708697452972,-500.0,0.00027397,2]
[314956404,1708697452981,-500.0,0.00027397,2]
[314956405,1708697452991,-500.0,0.00027397,2]
[314956406,1708697453000,-505.05515,0.00027397,2]
[314956407,1708697453010,-511.13715424,0.00027397,2]
[314956408,1708697453019,-504.56,0.00027397,2]
[314956409,1708697453029,-500.0,0.00027397,2]
[314956410,1708697453038,-500.0,0.00027397,2]
[314956411,1708697453048,-500.0,0.00027397,2]
[314956412,1708697453058,-500.0,0.00027397,2]
[314956413,1708697453067,-398.39613659,0.00027397,2]
[314956414,1708697453076,-500.0,0.00027397,2]
[314956415,1708697453086,-500.0,0.00027397,2]
[314956416,1708697453095,-500.0,0.00027397,2]
[314956417,1708697453106,-895.69,0.00027397,2]
[314956418,1708697453115,-500.0,0.00027397,2]
[314956419,1708697453125,-500.0,0.00027397,2]
[314956420,1708697453135,-500.0,0.00027397,2]
[314956421,1708697453144,-500.0,0.00027397,2]
[314956422,1708697453154,-500.0,0.00027397,2]
[314956423,1708697453163,-500.0,0.00027397,2]
[314956424,1708697453172,-510.40601472,0.00027397,2]
[314956425,1708697453182,-500.0,0.00027397,2]
[314956426,1708697453192,-500.0,0.00027397,2]
[314956427,1708697453202,-500.0,0.00027397,2]
[314956428,1708697453211,-500.0,0.00027397,2]
[314956429,1708697453223,-500.0,0.00027397,2]
[314956430,1708697453233,-35.3721778,0.00027397,2]
[314956431,1708697453608,-464.6278222,0.00027397,2]
[314956432,1708697453617,-91.4127965,0.00027397,2]
[314956433,1708697453629,-441.0672035,0.00027397,2]
[314956434,1708697453638,-68.1859965,0.00027397,2]
[314956435,1708697453696,-431.8140035,0.00027397,2]
[314956436,1708697453705,-585.54,0.00027397,2]
[314956437,1708697453715,-538.82,0.00027397,2]
[314956438,1708697453723,-500.0,0.00027397,2]
[314956439,1708697453732,-500.0,0.00027397,2]
[314956440,1708697453741,-500.0,0.00027397,2]
[314956441,1708697453751,-500.0,0.00027397,2]
[314956442,1708697453760,-500.0,0.00027397,2]
[314956443,1708697453769,-543.92,0.00027397,2]
[314956444,1708697453778,-500.0,0.00027397,2]
[314956445,1708697453788,-500.0,0.00027397,2]
[314956446,1708697453797,-500.0,0.00027397,2]
[314956447,1708697453806,-500.0,0.00027397,2]
[314956448,1708697453815,-500.0,0.00027397,2]
[314956449,1708697453825,-500.0,0.00027397,2]
[314956450,1708697453834,-500.0,0.00027397,2]
[314956451,1708697453843,-542.35,0.00027397,2]
[314956452,1708697453851,-500.0,0.00027397,2]
[314956453,1708697453861,-866.3,0.00027397,2]
[314956454,1708697453870,-500.0,0.00027397,2]
[314956455,1708697453879,-807.9,0.00027397,2]
[314956456,1708697453889,-500.0,0.00027397,2]
[314956457,1708697453898,-500.0,0.00027397,2]
[314956458,1708697453907,-500.0,0.00027397,2]
[314956459,1708697453916,-500.0,0.00027397,2]
[314956460,1708697453925,-500.0,0.00027397,2]
[314956461,1708697453934,-500.0,0.00027397,2]
[314956462,1708697453943,-500.0,0.00027397,2]
[314956463,1708697453952,-500.0,0.00027397,2]
[314956464,1708697453962,-500.0,0.00027397,2]
[314956465,1708697453971,-500.0,0.00027397,2]
[314956466,1708697453989,-500.0,0.00027397,2]
[314956467,1708697454001,-500.0,0.00027397,2]
[314956468,1708697454010,-500.0,0.00027397,2]
[314956469,1708697454020,-1104.05,0.00027397,2]
[314956470,1708697454029,-500.0,0.00027397,2]
[314956471,1708697454039,-500.0,0.00027397,2]
[314956472,1708697454048,-296.02862651,0.00027397,2]
[314956473,1708697454057,-500.0,0.00027397,2]
[314956474,1708697454067,-500.0,0.00027397,2]
[314956475,1708697454076,-587.48205469,0.00027397,2]
[314956476,1708697454086,-259.04033988,0.00027397,2]
[314956477,1708697454095,-500.0,0.00027397,2]
[314956478,1708697454105,-500.0,0.00027397,2]
[314956479,1708697454114,-500.0,0.00027397,2]
[314956480,1708697454124,-1123.07,0.00027397,2]
[314956481,1708697454133,-500.0,0.00027397,2]
[314956482,1708697454142,-500.0,0.00027397,2]
[314956483,1708697454152,-500.0,0.00027397,2]
[314956484,1708697454162,-500.0,0.00027397,2]
[314956485,1708697454172,-500.0,0.00027397,2]
[314956486,1708697454181,-419.88873898,0.00027397,2]
[314956487,1708697454190,-500.0,0.00027397,2]
[314956488,1708697454200,-500.0,0.00027397,2]
[314956489,1708697454213,-500.0,0.00027397,2]
[314956490,1708697454222,-500.0,0.00027397,2]
[314956491,1708697454231,-500.0,0.00027397,2]
[314956492,1708697454241,-500.0,0.00027397,2]
[314956493,1708697454251,-500.0,0.00027397,2]
[314956494,1708697454261,-500.0,0.00027397,2]
[314956495,1708697454270,-500.0,0.00027397,2]
[314956496,1708697454280,-500.0,0.00027397,2]
[314956497,1708697454289,-878.82,0.00027397,2]
[314956498,1708697454300,-500.0,0.00027397,2]
[314956499,1708697454309,-500.0,0.00027397,2]
[314956500,1708697454318,-500.0,0.00027397,2]
[314956501,1708697454328,-500.0,0.00027397,2]
[314956502,1708697454337,-500.0,0.00027397,2]
[314956503,1708697454346,-1000.0,0.00027397,7]
[314956504,1708697454357,-500.0,0.00027397,2]
[314956505,1708697454366,-500.0,0.00027397,2]
[314956506,1708697454375,-500.0,0.00027397,2]
[314956507,1708697454385,-511.56560665,0.00027397,2]
[314956508,1708697454394,-500.0,0.00027397,2]
[314956509,1708697454403,-635.94750927,0.00027397,2]
[314956510,1708697454412,-500.0,0.00027397,2]
[314956511,1708697454421,-500.0,0.00027397,2]
[314956512,1708697454431,-500.0,0.00027397,2]
[314956513,1708697454440,-500.0,0.00027397,2]
[314956514,1708697454449,-500.0,0.00027397,2]
[314956515,1708697454459,-500.0,0.00027397,2]
[314956516,1708697454468,-500.0,0.00027397,2]
[314956517,1708697454478,-500.0,0.00027397,2]
[314956518,1708697454487,-1093.97,0.00027397,2]
[314956519,1708697454497,-500.0,0.00027397,2]
[314956520,1708697454506,-533.50359931,0.00027397,2]
[314956521,1708697454521,-500.0,0.00027397,2]
[314956522,1708697454530,-500.0,0.00027397,2]
[314956523,1708697454539,-500.0,0.00027397,2]
[314956524,1708697454549,-500.0,0.00027397,2]
[314956525,1708697454558,-500.0,0.00027397,2]
[314956526,1708697454567,-500.0,0.00027397,2]
[314956527,1708697454577,-500.0,0.00027397,2]
[314956528,1708697454587,-500.0,0.00027397,2]
[314956529,1708697454596,-500.0,0.00027397,2]
[314956530,1708697454606,-653.76,0.00027397,2]
[314956531,1708697454615,-500.0,0.00027397,2]
[314956532,1708697454625,-500.0,0.00027397,2]
[314956533,1708697454635,-500.0,0.00027397,2]
[314956534,1708697454644,-378.34559428,0.00027397,2]
[314956535,1708697477239,2177.82,0.000235,2]
[314956539,1708698343151,-232.490201,0.00023551,2]
[314956540,1708698343177,-201.0,0.00023552,2]
[314956541,1708698343202,-279.0,0.00023721,2]
[314956542,1708698343226,-504.77,0.00023722,2]
[314956543,1708698343251,-1339.1634261,0.00024358,2]
[314956544,1708698343276,-150.0,0.00024998,2]
[314956545,1708698343300,-150.0,0.00025,2]
[314956546,1708698343326,-750.0,0.00025,3]
[314956547,1708698343348,-1008.53065537,0.00025,2]
[314956548,1708698343372,-468.24,0.00025509,2]
[314956549,1708698343398,-250.0,0.00025546,2]
[314956550,1708698343421,-15488.80812543,0.00025619,2]
[314956551,1708698343445,-13174.8079113,0.0002562,2]
[314956552,1708698428379,-485.73381817,0.00025587,2]
[314956553,1708698428400,-1008.53065537,0.00025588,2]
[314956554,1708698428420,-201.0,0.00025589,2]
[314956555,1708698428439,-1268.42838559,0.00025619,2]
[314956556,1708698520210,-903.08739323,0.00025618,2]
[314956557,1708698520233,-903.08739323,0.00025619,2]
[314956558,1708698520249,-13193.82521354,0.00025619,2]
[314956561,1708698577689,-6900.0,0.000256,2]
[314956566,1708698630594,-158.40450931,0.000255,2]
[314956567,1708698630626,-300.0,0.00025598,2]
[314956568,1708698630646,-158.40450931,0.00025599,2]
[314956569,1708698630661,-300.0,0.00025599,2]
[314956570,1708698630674,-8083.19098138,0.00025599,2]
[314956578,1708698634468,-6947.21263474,0.00025599,2]
[314956579,1708698634477,-4950.0,0.000256,2]
[314956580,1708698634487,-199.68,0.00025656,2]
[314956581,1708698634496,-200.0,0.00025878,2]
[314956582,1708698634505,-926.07296746,0.00025936,2]
[314956583,1708698634515,-165.93,0.00025936,2]
[314956584,1708698634524,-2000.0,0.00025952,2]
[314956585,1708698634534,-207.97,0.00025974,2]
[314956586,1708698634542,-23900.0,0.00025985,2]
[314956587,1708698634552,-424.03,0.00025986,2]
[314956588,1708698634568,-504.77,0.00025986,2]
[314956589,1708698634580,-634.92,0.00025987,2]
[314956590,1708698634592,-800.32,0.00025993,2]
[314956591,1708698634603,-499.99,0.00026199,2]
[314956592,1708698634614,-999.99,0.00026199,2]
[314956593,1708698634628,-1449.95,0.00026412,2]
[314956594,1708698634640,-165.93,0.00026455,2]
[314956595,1708698634651,-5000.0,0.000267,2]
[314956596,1708698634662,-165.73,0.0002679,2]
[314956597,1708698634672,-12112.0,0.000269,2]
[314956598,1708698634687,-152.0,0.00026971,2]
[314956599,1708698634699,-158.0179946,0.00026973,2]
[314956600,1708698634715,-7.9120054,0.00026973,2]
[314956601,1708698634727,-2064.0,0.00027,2]
[314956602,1708698634741,-800.0,0.00027,3]
[314956603,1708698634753,-1850.82543837,0.00027,2]
[314956608,1708698638085,-1079.066,0.00027,2]
[314956610,1708698638181,-1024.8,0.00027,2]
[314956611,1708698638195,-7895.30856163,0.00027,2]
[314956612,1708698638206,-1000.0,0.00027094,2]
[314956613,1708698638217,-439.4016,0.00027094,2]
[314956614,1708698638228,-188.38867403,0.00027094,2]
[314956615,1708698638239,-19749.98366582,0.00027094,2]
[314956616,1708698638250,-3154.42303737,0.00027095,2]
[314956617,1708698638261,-5304.24823469,0.00027095,2]
[314956618,1708698638271,-4326.50554356,0.00027095,2]
[314956619,1708698638285,-7656.06619445,0.00027095,2]
[314956620,1708698638444,-21576.18886664,0.00027095,2]
[314956621,1708698638454,-171.66719873,0.00027095,2]
[314956622,1708698638464,-499.97108928,0.00027095,3]
[314956623,1708698638474,-150.0,0.00027123,2]
[314956624,1708698638485,-150.0,0.00027123,2]
[314956625,1708698638495,-150.0,0.00027123,2]
[314956626,1708698638506,-150.0,0.00027123,2]
[314956627,1708698638516,-253.56619,0.00027123,2]
[314956628,1708698638526,-535.02818019,0.00027192,2]
[314956629,1708698638537,-155.0,0.00027192,2]
[314956630,1708698638547,-634.10867862,0.00027193,2]
[314956631,1708698638557,-32332.08867678,0.00027194,2]
[314956632,1708698638571,-694.05584019,0.00027194,2]
[314956633,1708698638583,-782.52983112,0.00027194,2]
[314956634,1708698638607,-1040.30440686,0.00027194,2]
[314956641,1708698640611,-4317.82406517,0.00027194,2]
[314956644,1708698640632,-1516.53466466,0.00027194,2]
[314956649,1708698640644,-5535.80237979,0.00027194,2]
[314956652,1708698640661,-270.787479,0.00027194,2]
[314956657,1708698640703,-1984.59096667,0.00027194,2]
[314956659,1708698640715,-853.15156266,0.00027194,2]
[314956661,1708698640728,-741.8811006,0.00027194,2]
[314956668,1708698640779,-533.06629173,0.00027194,2]
[314956672,1708698640813,-1001.39899836,0.00027194,2]
[314956676,1708698640843,-47467.19140727,0.00027194,2]
[314956677,1708698640856,-1064.25258234,0.00027194,2]
[314956678,1708698640868,-4568.12145839,0.00027194,2]
[314956679,1708698640882,-1181.98499999,0.00027194,2]
[314956680,1708698640895,-275.1328386,0.00027194,2]
[314956682,1708698640919,-1277.704382,0.00027194,2]
[314956685,1708698640933,-704.8343198,0.00027194,2]
[314956688,1708698640947,-290.23665519,0.00027194,2]
[314956699,1708698641521,-102449.21153124,0.00027194,2]
[314956700,1708698641587,-735.57180254,0.00027194,2]
[314956701,1708698641727,-644.77640894,0.00027194,2]
[314956702,1708698641741,-520.62881186,0.00027194,2]
[314956714,1708698643147,-1679.045025,0.00027194,2]
[314956715,1708698643174,-358.76694368,0.00027194,2]
[314956716,1708698643190,-511.41,0.00027194,2]
[314956717,1708698643204,-29600.0,0.00027194,2]
[314956718,1708698643237,-466.7139801,0.00027194,2]
[314956719,1708698643251,-4837.94111883,0.00027194,2]
[314956720,1708698643265,-5642.59767511,0.00027194,2]
[314956721,1708698643281,-1218.08743448,0.00027194,2]
[314956722,1708698643295,-6760.05180428,0.00027194,2]
[314956723,1708698643310,-28589.43605439,0.00027194,2]
[314956724,1708698643325,-2731.09173429,0.00027194,2]
[314956725,1708698643339,-2766.73387216,0.00027194,2]
[314956726,1708698643354,-32706.3832525,0.00027194,2]
[314956727,1708698643368,-15561.07181163,0.00027194,2]
[314956728,1708698643388,-229214.63266116,0.00027194,2]
[314956729,1708698643402,-488105.9852458,0.00027194,2]
[314956730,1708698643414,-245000.0,0.00027195,2]
[314956731,1708698643425,-2091.6287,0.00027195,2]
[314956732,1708698643437,-1048.72650294,0.00027196,2]
[314956761,1708698646261,-579.0,0.00027196,2]
[314956762,1708698646274,-14866.81179941,0.00027196,2]
[314956763,1708698646286,-19541.12168,0.00027196,2]
[314956764,1708698646298,-1496.34999998,0.00027196,2]
[314956765,1708698646314,-9502.58316201,0.00027196,2]
[314956766,1708698646327,-265.61177003,0.00027196,2]
[314956767,1708698646339,-775.7727536,0.00027196,2]
[314956768,1708698646364,-4231.59191978,0.00027196,2]
[314956769,1708698646383,-29099.40771225,0.00027196,2]
[314956770,1708698646396,-2694.0036,0.00027296,2]
[314956771,1708698646407,-42131.77123199,0.00027296,2]
[314956772,1708698646421,-5523.41773279,0.00027296,2]
[314956773,1708698646434,-18072.45196985,0.00027296,2]
[314956774,1708698646451,-26268.19536144,0.00027296,2]
[314956775,1708698646464,-8004.16370393,0.00027296,2]
[314956776,1708698646475,-5000.0,0.00027297,2]
[314956777,1708698646486,-150.0,0.00027312,2]
[314956778,1708698646497,-3154.42303732,0.00027339,2]
[314956779,1708698646508,-14256.21,0.0002739,2]
[314956780,1708698646519,-1251.32081538,0.00027392,2]
[314956781,1708698646529,-155.0,0.00027395,2]
[314956782,1708698646540,-155.0,0.00027396,2]
[314956783,1708698646550,-1241.11389382,0.00027396,2]
[314956784,1708698646560,-164.87440925,0.00027397,2]
[314956785,1708698646572,-500.0,0.00027397,2]
[314956786,1708698646583,-2000.0,0.00027397,2]
[314956787,1708698646594,-200.0,0.00027397,2]
[314956788,1708698646607,-500.0,0.00027397,2]
[314956789,1708698646619,-514.55,0.00027397,2]
[314956790,1708698646637,-500.0,0.00027397,2]
[314956791,1708698646649,-500.0,0.00027397,2]
[314956792,1708698646661,-500.0,0.00027397,2]
[314956793,1708698646672,-500.0,0.00027397,2]
[314956794,1708698646682,-500.0,0.00027397,2]
[314956795,1708698646694,-500.0,0.00027397,2]
[314956796,1708698646704,-500.0,0.00027397,2]
[314956797,1708698646714,-500.0,0.00027397,2]
[314956798,1708698646724,-500.0,0.00027397,2]
[314956799,1708698646734,-500.0,0.00027397,2]
[314956800,1708698646744,-500.0,0.00027397,2]
[314956801,1708698646754,-500.0,0.00027397,2]
[314956802,1708698646764,-500.0,0.00027397,2]
[314956803,1708698646774,-500.0,0.00027397,2]
[314956804,1708698646783,-500.0,0.00027397,2]
[314956805,1708698646793,-521.87090234,0.00027397,2]
[314956806,1708698646804,-500.0,0.00027397,2]
[314956807,1708698646814,-500.0,0.00027397,2]
[314956808,1708698646824,-500.0,0.00027397,2]
[314956809,1708698646834,-500.0,0.00027397,2]
[314956810,1708698646844,-521.56452375,0.00027397,2]
[314956811,1708698646854,-500.0,0.00027397,2]
[314956812,1708698646864,-500.0,0.00027397,2]
[314956813,1708698646874,-527.83358073,0.00027397,2]
[314956814,1708698646890,-500.0,0.00027397,2]
[314956815,1708698646901,-500.0,0.00027397,2]
[314956816,1708698646912,-500.0,0.00027397,2]
[314956817,1708698646923,-525.65994393,0.00027397,2]
[314956818,1708698646933,-500.0,0.00027397,2]
[314956819,1708698646944,-500.0,0.00027397,2]
[314956820,1708698646954,-249.22255581,0.00027397,2]
[314956821,1708698646966,-500.0,0.00027397,2]
[314956822,1708698646976,-500.0,0.00027397,2]
[314956823,1708698646986,-500.0,0.00027397,2]
[314956824,1708698646995,-500.0,0.00027397,2]
[314956825,1708698647005,-500.0,0.00027397,2]
[314956826,1708698647015,-546.11,0.00027397,2]
[314956827,1708698647024,-401.19585033,0.00027397,2]
[314956828,1708698647034,-500.0,0.00027397,2]
[314956829,1708698647043,-500.0,0.00027397,2]
[314956830,1708698647052,-563.70020159,0.00027397,2]
[314956831,1708698647062,-500.0,0.00027397,2]
[314956832,1708698647072,-500.0,0.00027397,2]
[314956833,1708698647086,-500.0,0.00027397,2]
[314956834,1708698647096,-500.0,0.00027397,2]
[314956835,1708698647105,-500.0,0.00027397,2]
[314956836,1708698647115,-500.0,0.00027397,2]
[314956837,1708698647125,-500.0,0.00027397,2]
[314956838,1708698647140,-500.0,0.00027397,2]
[314956839,1708698647149,-500.0,0.00027397,2]
[314956840,1708698647159,-500.0,0.00027397,2]
[314956841,1708698647169,-500.0,0.00027397,2]
[314956842,1708698647179,-500.0,0.00027397,2]
[314956843,1708698647189,-500.0,0.00027397,2]
[314956844,1708698647198,-500.0,0.00027397,2]
[314956845,1708698647208,-500.0,0.00027397,2]
[314956846,1708698647218,-500.0,0.00027397,2]
[314956847,1708698647228,-500.0,0.00027397,2]
[314956848,1708698647238,-500.0,0.00027397,2]
[314956849,1708698647247,-500.0,0.00027397,2]
[314956850,1708698647257,-500.0,0.00027397,2]
[314956851,1708698647266,-155.05855563,0.00027397,2]
[314956852,1708698647276,-500.0,0.00027397,2]
[314956853,1708698647285,-500.0,0.00027397,2]
[314956854,1708698647295,-500.0,0.00027397,2]
[314956855,1708698647304,-500.0,0.00027397,2]
[314956856,1708698647313,-500.0,0.00027397,2]
[314956857,1708698647323,-578.87401524,0.00027397,2]
[314956858,1708698647332,-500.0,0.00027397,2]
[314956859,1708698647341,-518.63,0.00027397,2]
[314956860,1708698647350,-500.0,0.00027397,2]
[314956861,1708698647360,-500.0,0.00027397,2]
[314956862,1708698647369,-500.0,0.00027397,2]
[314956863,1708698647382,-525.99675661,0.00027397,2]
[314956864,1708698647391,-471.23621299,0.00027397,2]
[314956865,1708698647400,-542.64002395,0.00027397,2]
[314956866,1708698647410,-500.0,0.00027397,2]
[314956867,1708698647419,-500.0,0.00027397,2]
[314956868,1708698647429,-500.0,0.00027397,2]
[314956869,1708698647441,-500.0,0.00027397,2]
[314956870,1708698647450,-500.0,0.00027397,2]
[314956871,1708698647460,-500.0,0.00027397,2]
[314956872,1708698647469,-486.41224546,0.00027397,2]
[314956873,1708698647478,-529.32063882,0.00027397,2]
[314956874,1708698647488,-500.0,0.00027397,2]
[314956875,1708698647498,-500.0,0.00027397,2]
[314956876,1708698647507,-500.0,0.00027397,2]
[314956877,1708698647517,-511.82211731,0.00027397,2]
[314956878,1708698647526,-500.0,0.00027397,2]
[314956879,1708698647535,-500.0,0.00027397,2]
[314956880,1708698647545,-156.22,0.00027397,2]
[314956881,1708698647555,-500.0,0.00027397,2]
[314956882,1708698647566,-500.0,0.00027397,2]
[314956883,1708698647575,-500.0,0.00027397,2]
[314956884,1708698647585,-500.0,0.00027397,2]
[314956885,1708698647596,-500.0,0.00027397,2]
[314956886,1708698647608,-500.0,0.00027397,2]
[314956887,1708698647618,-500.0,0.00027397,2]
[314956888,1708698647630,-500.0,0.00027397,2]
[314956889,1708698647640,-535.05749709,0.00027397,2]
[314956890,1708698647650,-500.0,0.00027397,2]
[314956891,1708698647659,-540.07,0.00027397,2]
[314956892,1708698647669,-500.0,0.00027397,2]
[314956893,1708698647680,-500.0,0.00027397,2]
[314956894,1708698647690,-500.0,0.00027397,2]
[314956895,1708698647701,-493.62812638,0.00027397,2]
[314956896,1708698647711,-500.0,0.00027397,2]
[314956897,1708698647720,-515.5379203,0.00027397,2]
[314956898,1708698647730,-500.0,0.00027397,2]
[314956899,1708698647739,-531.89581332,0.00027397,2]
[314956900,1708698647749,-500.0,0.00027397,2]
[314956901,1708698647758,-500.0,0.00027397,2]
[314956902,1708698647768,-500.0,0.00027397,2]
[314956903,1708698647777,-500.0,0.00027397,2]
[314956904,1708698647787,-550.78957824,0.00027397,2]
[314956905,1708698647796,-500.0,0.00027397,2]
[314956906,1708698647806,-500.0,0.00027397,2]
[314956907,1708698647820,-500.0,0.00027397,2]
[314956908,1708698647830,-500.0,0.00027397,2]
[314956909,1708698647840,-544.8017388,0.00027397,2]
[314956910,1708698647849,-500.0,0.00027397,2]
[314956911,1708698647859,-500.0,0.00027397,2]
[314956912,1708698647869,-500.0,0.00027397,2]
[314956913,1708698647880,-500.0,0.00027397,2]